bitfinex/quotes_ETHUSD_20250623
["timestamp","ask_amount","ask_price","bid_price","bid_amount"]
[1750720300061,10.0,2423.8,2422.3,1.6046]
[1750720300264,2.264,2423.3,2422.3,1.6046]
[1750720300463,2.264,2423.3,2422.4,0.92916]
[1750720300759,17.693,2423.8,2422.4,0.92916]
[1750720300760,2.264,2423.7,2422.4,0.92916]
[1750720301224,2.264,2423.7,2422.3,1.6046]
[1750720301620,2.263,2423.7,2422.3,1.6046]
[1750720301825,2.263,2423.8,2422.6,0.55]
[1750720302063,12.263,2423.8,2422.6,4.67777932]
[1750720302262,12.263,2423.8,2422.8,0.55]
[1750720302464,12.263,2423.8,2422.9,0.63386106]
[1750720302867,12.263,2423.8,2422.8,0.55]
[1750720303229,12.263,2423.8,2422.7,1.6611]
[1750720303623,12.263,2423.8,2422.8,0.55]
[1750720304569,10.064,2423.9,2422.8,0.55]
[1750720304732,0.14,2423.9,2422.8,0.55]
[1750720304962,0.14,2423.9,2422.7,1.6611]
[1750720304963,0.14,2423.9,2423.0,0.55]
[1750720305564,0.1469224,2423.8,2423.1,1.5316]
[1750720305890,10.021,2424.4,2422.9,0.22111]
[1750720305891,0.021,2424.4,2423.4,4.67631451]
[1750720306605,10.0,2424.2,2423.4,0.55]
[1750720306803,0.021,2424.4,2423.4,0.55]
[1750720306974,0.021,2424.4,2423.7,4.1257781]
[1750720307165,0.021,2424.4,2423.8,0.55]
[1750720308166,0.021,2424.4,2423.7,1.6112]
[1750720310006,2.369,2424.4,2423.7,1.6112]
[1750720310507,2.369,2424.4,2423.8,0.55]
[1750720311004,2.369,2424.4,2423.7,1.6112]
[1750720311404,0.021,2424.4,2423.7,1.6112]
[1750720311604,2.348,2424.3,2423.7,1.6112]
[1750720312424,0.021,2424.4,2423.7,1.6112]
[1750720313979,2.347,2424.3,2423.7,1.6112]
[1750720314283,0.021,2424.4,2423.7,1.6112]
[1750720319815,10.0,2424.2,2423.3,1.5965]
[1750720320012,2.347,2424.1,2423.3,1.5965]
[1750720320214,30.0,2423.8,2423.3,1.5965]
[1750720320415,2.347,2424.1,2423.3,1.5965]
[1750720320639,2.347,2424.0,2423.3,1.5965]
[1750720320820,10.0,2423.8,2423.3,1.5965]
[1750720321423,10.0,2423.6,2423.3,1.5965]
[1750720321727,30.0,2423.7,2422.9,1.6404]
[1750720321926,10.0,2423.4,2421.2,1.59741485]
[1750720322099,11.6208,2423.6,2421.1,10.057]
[1750720322100,30.0,2423.1,2422.2,1.6404]
[1750720322302,9.917,2423.9,2422.5,4.12796476]
[1750720322517,9.917,2423.9,2422.7,0.55]
[1750720322518,10.0,2423.8,2422.7,0.55]
[1750720322717,13.8848,2423.9,2422.6,2.05319648]
[1750720322918,13.8848,2423.9,2422.6,1.6404]
[1750720323156,30.0,2423.5,2422.6,1.6404]
[1750720323343,11.5378,2423.9,2422.6,1.6404]
[1750720323344,2.347,2423.6,2422.6,1.6404]
[1750720323857,11.5378,2423.9,2422.6,1.6404]
[1750720323858,1.6208,2423.9,2422.6,1.6404]
[1750720324054,0.021,2424.4,2422.6,1.6404]
[1750720324055,30.0,2424.3,2422.6,1.5672]
[1750720324242,0.021,2424.4,2423.2,0.55]
[1750720324443,30.0,2424.3,2423.2,0.55]
[1750720324850,30.0,2424.3,2423.1,1.5672]
[1750720325049,10.0,2424.0,2423.1,1.5672]
[1750720325220,10.0,2424.2,2423.1,1.5672]
[1750720325424,10.021,2424.4,2423.2,0.39142]
[1750720325656,10.0,2424.0,2423.1,1.5672]
[1750720325858,10.021,2424.4,2423.1,1.5672]
[1750720326065,10.0,2424.0,2423.1,1.5672]
[1750720326266,2.347,2423.9,2423.1,1.5672]
[1750720326970,11.5326,2423.8,2422.8,1.5672]
[1750720327132,10.0,2423.6,2422.8,1.5672]
[1750720327768,2.347,2423.6,2422.8,1.5672]
[1750720328135,10.0,2423.9,2422.8,1.5672]
[1750720328338,2.347,2423.8,2422.8,1.5672]
[1750720328751,30.0,2424.0,2423.0,1.6263]
[1750720328978,10.0,2423.9,2423.1,0.21763]
[1750720329330,2.347,2424.1,2423.1,0.21763]
[1750720329725,10.0,2423.9,2423.1,0.21763]
[1750720329948,2.347,2424.1,2423.2,1.6396]
[1750720331412,10.0,2423.9,2423.2,1.6396]
[1750720331607,32.347,2424.3,2423.2,1.6396]
[1750720331767,0.021,2424.4,2423.4,0.55]
[1750720332102,0.021,2424.4,2423.6,0.55]
[1750720332391,0.021,2424.4,2423.7,1.6274]
[1750720335173,10.0,2424.1,2423.7,1.6274]
[1750720335418,12.347,2424.3,2423.7,1.6274]
[1750720335705,30.0,2423.8,2423.3,1.6043]
[1750720335857,2.347,2424.3,2423.3,1.6043]
[1750720336059,10.0,2423.9,2423.3,1.6043]
[1750720336300,10.0,2423.7,2423.3,1.6043]
[1750720336508,10.0,2424.0,2423.3,1.6043]
[1750720336657,10.0,2423.6,2422.8,1.6043]
[1750720336858,10.0,2423.4,2422.8,1.6043]
[1750720337057,10.0,2423.6,2422.8,1.6043]
[1750720337502,10.0,2423.6,2421.9,4.12882321]
[1750720337503,10.0,2423.4,2422.2,1.5522]
[1750720337703,10.0,2423.0,2422.2,1.5522]
[1750720337913,2.347,2423.1,2422.2,1.5522]
[1750720338788,30.0,2423.0,2422.2,1.5522]
[1750720338988,10.0,2422.9,2422.2,1.5522]
[1750720339303,10.0,2423.0,2422.2,1.5522]
[1750720339485,2.279,2422.9,2422.2,1.5522]
[1750720343127,10.0,2423.0,2422.2,1.5522]
[1750720343272,2.28,2423.2,2422.2,1.5522]
[1750720343583,10.0,2423.5,2422.2,1.5522]
[1750720343788,30.0,2423.4,2422.3,0.39722]
[1750720343991,4.12626939,2423.5,2422.2,1.5522]
[1750720343992,30.0,2423.5,2422.2,1.5522]
[1750720344292,10.0,2423.2,2422.2,1.5522]
[1750720344494,10.0,2423.4,2422.2,1.5522]
[1750720344791,7.611,2423.5,2422.2,1.5522]
[1750720344792,10.0,2422.8,2422.2,1.5522]
[1750720345001,10.0,2423.1,2422.1,0.14]
[1750720345002,10.0,2422.4,2422.1,0.14]
[1750720345202,30.0,2422.6,2422.1,0.14]
[1750720345420,2.28,2422.7,2422.1,0.14]
[1750720345783,9.95,2422.5,2422.1,0.14]
[1750720347209,30.0,2422.4,2422.1,0.14]
[1750720347820,10.0,2422.3,2422.1,0.14]
[1750720348007,10.0,2422.4,2422.1,0.14]
[1750720348206,10.0,2422.2,2422.1,0.14]
[1750720348482,10.0,2422.6,2422.1,0.14]
[1750720348719,10.0,2422.4,2422.1,0.14]
[1750720349329,10.0,2422.2,2422.1,0.14]
[1750720349532,10.0,2422.4,2422.1,0.14]
[1750720349734,10.0,2422.2,2422.1,0.14]
[1750720350035,10.0,2422.6,2422.1,0.14]
[1750720350191,10.0,2422.4,2422.1,0.14]
[1750720350397,7.99200453,2422.7,2422.1,0.14]
[1750720350398,10.0,2422.6,2422.1,0.14]
[1750720350618,10.0,2422.2,2422.1,0.14]
[1750720350826,10.0,2422.6,2422.1,0.14]
[1750720351134,10.0,2422.4,2422.1,0.14]
[1750720351509,10.0,2422.6,2422.1,0.14]
[1750720351697,10.0,2422.4,2422.1,0.14]
[1750720352044,10.0,2422.3,2422.1,0.14]
[1750720352332,10.0,2422.2,2422.1,0.14]
[1750720353394,40.0,2422.2,2422.1,0.14]
[1750720353596,45.79037824,2422.2,2422.1,0.00860494]
[1750720358457,15.79037824,2422.2,2422.1,0.00860494]
[1750720358621,45.79037824,2422.2,2422.1,0.00860494]
[1750720358819,41.6619,2422.2,2422.1,0.00860494]
[1750720359126,49.827,2422.2,2422.1,0.00860494]
[1750720359518,40.0,2422.2,2422.1,0.00860494]
[1750720359722,2.281,2422.2,2422.1,0.00860494]
[1750720361051,2.281,2422.4,2422.1,0.00860494]
[1750720361453,40.0,2422.7,2422.1,0.00860494]
[1750720361765,10.0,2422.3,2422.1,0.00860494]
[1750720362728,2.281,2422.6,2422.1,0.00860494]
[1750720362934,12.281,2422.6,2422.1,0.00860494]
[1750720363134,11.9873692,2422.9,2422.1,0.00860494]
[1750720363344,10.0,2422.6,2422.1,0.00860494]
[1750720363549,2.281,2422.5,2422.1,0.00860494]
[1750720364144,10.0,2422.4,2422.1,0.00860494]
[1750720364358,2.281,2422.4,2422.1,0.00860494]
[1750720365086,10.0,2422.8,2422.1,0.00860494]
[1750720365290,2.281,2422.5,2422.1,0.00860494]
[1750720365591,10.0,2422.8,2422.1,0.00860494]
[1750720365773,10.0,2422.6,2422.1,0.00860494]
[1750720366663,2.198,2422.5,2422.1,0.00860494]
[1750720367494,2.198,2422.5,2422.2,1.6248]
[1750720369208,2.198,2422.5,2422.1,0.00860494]
[1750720369619,30.0,2422.4,2422.1,0.00860494]
[1750720369801,10.0,2422.3,2422.1,0.00860494]
[1750720370177,2.198,2422.5,2422.1,0.00860494]
[1750720370377,10.0,2422.3,2422.1,0.00860494]
[1750720370578,51.60747824,2422.2,2422.1,0.00860494]
[1750720370811,10.0,2422.1,2421.3,1.6532]
[1750720371012,30.0,2421.8,2421.3,1.6532]
[1750720371215,2.198,2421.7,2421.3,1.6532]
[1750720372190,10.0,2422.1,2421.3,1.6532]
[1750720372523,10.0,2421.9,2421.3,1.6532]
[1750720372881,2.198,2421.8,2421.3,1.6532]
[1750720373880,10.0,2421.6,2421.3,1.6532]
[1750720374302,2.198,2421.8,2421.3,1.6532]
[1750720374505,12.198,2421.8,2421.3,1.6532]
[1750720374817,2.198,2421.8,2421.3,1.6532]
[1750720375004,12.198,2421.8,2421.3,1.6532]
[1750720375222,2.198,2421.8,2421.3,1.6532]
[1750720375745,12.198,2421.8,2421.3,1.6532]
[1750720375907,2.198,2421.8,2421.3,1.6532]
[1750720376429,10.0,2421.6,2421.3,1.6532]
[1750720376804,10.0,2421.8,2421.3,1.6532]
[1750720377425,2.198,2421.9,2421.3,1.6532]
[1750720378224,10.0,2421.7,2421.3,1.6532]
[1750720378741,2.198,2421.9,2421.3,1.6532]
[1750720378941,10.0,2421.7,2421.3,1.6532]
[1750720379337,12.198,2421.9,2421.3,1.6532]
[1750720379338,2.198,2421.9,2421.3,1.6532]
[1750720379541,12.198,2421.9,2421.3,1.6532]
[1750720379719,2.198,2421.9,2421.3,1.6532]
[1750720379911,10.0,2421.7,2421.3,1.6532]
[1750720380323,30.0,2421.8,2421.3,1.6532]
[1750720380527,12.198,2421.9,2421.3,1.6532]
[1750720380723,10.0,2421.5,2421.1,0.14]
[1750720380922,10.0,2421.7,2421.1,0.14]
[1750720380923,45.72918338,2421.2,2421.1,0.14]
[1750720381159,43.797,2421.2,2421.1,0.14]
[1750720381764,12.198,2421.2,2421.1,0.14]
[1750720381929,55.40618338,2421.2,2421.1,0.14]
[1750720382257,56.45013388,2421.2,2421.1,0.14]
[1750720382461,56.28064869,2421.2,2421.1,0.14]
[1750720383761,52.15046531,2421.2,2421.1,0.14]
[1750720383968,52.15146531,2421.2,2421.1,0.14]
[1750720384140,51.277,2421.2,2421.1,0.14]
[1750720384472,12.198,2421.2,2421.1,0.14]
[1750720385676,10.0,2421.2,2421.1,0.14]
[1750720385827,2.199,2421.4,2421.1,0.14]
[1750720386029,30.0,2421.3,2421.1,0.14]
[1750720386276,10.0,2421.2,2421.1,0.14]
[1750720386728,30.0,2421.3,2421.1,0.14]
[1750720386928,2.199,2421.4,2421.1,0.14]
[1750720387551,10.0,2421.2,2421.1,0.14]
[1750720387754,61.58368338,2421.2,2421.1,0.14]
[1750720388067,58.06578886,2421.2,2421.1,0.14]
[1750720388362,62.19597224,2421.2,2421.1,0.14]
[1750720388750,32.19597224,2421.2,2421.1,0.14]
[1750720388956,62.19597224,2421.2,2421.1,0.14]
[1750720389127,40.0,2420.6,2420.1,0.14]
[1750720389332,44.13188992,2420.2,2420.1,0.14]
[1750720389530,51.61188992,2420.2,2420.1,0.14]
[1750720390232,52.16188992,2420.2,2420.1,0.14]
[1750720390432,53.82098992,2420.2,2420.1,0.14]
[1750720392352,54.27757212,2420.2,2420.1,0.14]
[1750720392877,53.82098992,2420.2,2420.1,0.14]
[1750720393384,62.29327878,2420.2,2420.1,0.14]
[1750720395585,61.68098992,2420.2,2420.1,0.14]
[1750720396297,49.5191,2420.2,2420.1,0.14]
[1750720396445,45.341,2420.2,2420.1,0.14]
[1750720397078,59.47288992,2420.2,2420.1,0.14]
[1750720397399,55.891,2420.2,2420.1,0.14]
[1750720397566,60.02288992,2420.2,2420.1,0.14]
[1750720399983,30.02288992,2420.2,2420.1,0.14]
[1750720400186,60.02288992,2420.2,2420.1,0.14]
[1750720400884,57.528,2420.2,2420.1,0.14]
[1750720401892,50.047,2420.2,2420.1,0.14]
[1750720403759,57.527,2420.2,2420.1,0.14]
[1750720404188,61.65888992,2420.2,2420.1,0.14]
[1750720404597,47.86,2420.2,2420.1,0.14]
[1750720404800,57.527,2420.2,2420.1,0.14]
[1750720405179,61.65888992,2420.2,2420.1,0.14]
[1750720406562,62.20888992,2420.2,2420.1,0.14]
[1750720408379,62.20788992,2420.2,2420.1,0.14]
[1750720408704,27.526,2420.2,2420.1,0.14]
[1750720408903,61.65788992,2420.2,2420.1,0.14]
[1750720409707,62.20788992,2420.2,2420.1,0.14]
[1750720410892,32.20788992,2420.2,2420.1,0.14]
[1750720411226,58.076,2420.2,2420.1,0.14]
[1750720411735,57.526,2420.2,2420.1,0.14]
[1750720412085,49.02228886,2420.2,2420.1,0.14]
[1750720412444,58.13628886,2420.2,2420.1,0.14]
[1750720412605,62.81817878,2420.2,2420.1,0.14]
[1750720412986,63.27882042,2420.2,2420.1,0.14]
[1750720413217,65.27632427,2420.2,2420.1,2e-08]
[1750720413419,65.27632427,2420.2,2419.1,0.14]
[1750720413420,46.26469788,2419.2,2419.1,0.14]
[1750720413629,56.19969788,2419.2,2419.1,0.14]
[1750720413816,59.599,2419.2,2419.1,0.14]
[1750720414797,52.123,2419.2,2419.1,0.14]
[1750720417192,52.12538378,2419.2,2419.1,0.14]
[1750720417701,19.93738378,2419.2,2419.1,0.14]
[1750720418418,49.93738378,2419.2,2419.1,0.14]
[1750720420617,0.00238378,2419.2,2419.1,1.672]
[1750720421643,30.00238378,2419.2,2419.1,1.672]
[1750720421826,10.00238378,2419.2,2419.1,1.672]
[1750720422930,42.19038378,2419.2,2419.1,0.14]
[1750720424454,40.41638378,2419.2,2419.1,0.14]
[1750720424661,42.19038378,2419.2,2419.1,0.14]
[1750720426357,42.18138378,2419.2,2419.1,0.14]
[1750720427660,12.18138378,2419.2,2419.1,0.14]
[1750720430743,19.64938378,2419.2,2419.1,0.14]
[1750720430929,51.15138378,2419.2,2419.1,0.14]
[1750720432155,42.18138378,2419.2,2419.1,0.14]
[1750720434753,12.18138378,2419.2,2419.1,0.14]
[1750720434959,42.18138378,2419.2,2419.1,0.14]
[1750720437561,40.00238378,2419.2,2419.1,0.14]
[1750720437761,42.18238378,2419.2,2419.1,0.14]
[1750720439057,32.18238378,2419.2,2419.1,0.14]
[1750720439395,0.00238378,2419.2,2419.1,1.7247]
[1750720442960,40.00238378,2419.2,2419.1,0.14]
[1750720444502,10.00238378,2419.2,2419.1,0.14]
[1750720444865,10.00238378,2419.2,2419.1,1.7112]
[1750720445384,0.00238378,2419.2,2419.1,2.2612]
[1750720445585,0.00238378,2419.2,2419.1,2.48732]
[1750720448423,0.00238378,2419.2,2419.1,1.7112]
[1750720451298,0.00238378,2419.2,2419.1,0.14]
[1750720453269,0.00238378,2419.2,2419.1,1.6707]
[1750720455720,0.00238378,2419.2,2419.1,0.14]
[1750720460632,0.00238378,2419.2,2419.1,2.3112]
[1750720460833,0.00238378,2419.2,2419.1,2.54232]
[1750720466845,0.00238378,2419.2,2419.1,6.67608875]
[1750720469068,0.00238378,2419.2,2419.1,12.14132]
[1750720469445,0.00238378,2419.2,2419.1,16.27508875]
[1750720469733,0.00238378,2419.2,2419.1,12.14132]
[1750720470118,0.00238378,2419.2,2419.1,1.99232]
[1750720470389,0.00238378,2419.2,2419.1,9.1942]
[1750720471044,0.00238378,2419.2,2419.1,9.7442]
[1750720473458,0.00238378,2419.2,2419.1,13.87796875]
[1750720475484,0.00238378,2419.2,2419.1,9.7442]
[1750720475683,0.00238378,2419.2,2419.1,11.54541154]
[1750720475883,0.00238378,2419.2,2419.1,15.67918029]
[1750720476654,0.00238378,2419.2,2419.1,11.54541154]
[1750720476984,0.00238378,2419.2,2419.1,15.67918029]
[1750720477483,0.00238378,2419.2,2419.1,4.11241154]
[1750720477787,0.00238378,2419.2,2419.1,16.03496875]
[1750720477972,0.5731222,2420.2,2419.3,2.0894]
[1750720478175,9.934,2421.2,2420.1,0.55]
[1750720478176,0.5731222,2420.9,2420.1,0.55]
[1750720478487,0.5731222,2420.9,2420.3,0.55]
[1750720479263,0.5731222,2420.9,2420.4,7.424]
[1750720479786,0.5731222,2420.9,2420.5,7.423]
[1750720481200,1.5759,2420.8,2419.5,0.55]
[1750720481367,0.5731222,2420.7,2419.9,0.55]
[1750720481972,10.0,2420.6,2419.9,0.55]
[1750720482173,10.5731222,2420.6,2420.0,7.42]
[1750720482375,0.5731222,2420.6,2420.0,8.36849]
[1750720482879,0.5731222,2420.6,2420.1,0.55]
[1750720483189,0.5731222,2421.0,2420.3,0.55]
[1750720483391,0.5731222,2421.0,2420.3,2.713]
[1750720483692,10.0,2421.1,2420.3,2.713]
[1750720483873,10.0,2421.1,2420.5,0.55]
[1750720484204,30.0,2421.8,2420.7,2.1188]
[1750720484358,11.5499,2421.6,2420.7,2.1188]
[1750720484702,1.5499,2421.6,2420.7,2.1188]
[1750720484856,1.5499,2421.6,2420.9,0.55]
[1750720485268,1.5499,2421.6,2421.0,7.417]
[1750720486859,10.0,2421.6,2421.0,7.417]
[1750720487086,0.53645553,2421.8,2421.3,0.55]
[1750720487395,1.6899,2421.9,2421.3,0.55]
[1750720488257,0.14,2421.9,2421.3,0.76188]
[1750720490578,10.0,2421.7,2420.8,2.56088]
[1750720490763,2.18755553,2421.8,2420.9,7.409]
[1750720490975,0.53645553,2421.7,2420.9,7.409]
[1750720491494,10.0,2421.5,2420.9,7.409]
[1750720492374,0.53645553,2421.7,2421.0,7.408]
[1750720492685,10.0,2421.6,2420.8,1.6071]
[1750720492909,10.0,2421.5,2420.9,7.957]
[1750720493288,0.53645553,2421.7,2421.0,7.406]
[1750720493692,10.0,2421.5,2421.0,7.406]
[1750720493894,0.53645553,2421.7,2420.9,0.55]
[1750720494081,10.0,2421.5,2421.1,7.405]
[1750720494285,0.53645553,2421.7,2421.1,7.405]
[1750720497076,0.53645553,2421.7,2420.9,0.55]
[1750720497277,0.53645553,2421.7,2421.0,7.402]
[1750720497797,10.0,2421.5,2421.1,7.401]
[1750720498205,0.53645553,2421.7,2421.1,7.401]
[1750720498419,10.0,2421.5,2421.1,7.401]
[1750720498774,0.53645553,2421.7,2421.1,7.401]
[1750720499710,10.53645553,2421.7,2421.1,7.401]
[1750720501302,0.14,2421.9,2421.2,1.6469]
[1750720501520,0.14,2421.9,2421.3,0.55]
[1750720502381,0.14,2421.9,2421.4,0.55]
[1750720502947,0.14,2421.9,2421.5,1.6469]
[1750720504104,0.14,2421.9,2421.6,0.55]
[1750720504416,0.14,2421.9,2421.5,1.6469]
[1750720504780,1.6607,2421.9,2421.3,7.393]
[1750720505474,1.6607,2421.9,2421.4,7.393]
[1750720505680,0.14,2421.9,2421.4,7.393]
[1750720506215,0.14,2421.9,2421.5,0.55]
[1750720506389,0.14,2421.9,2421.6,0.7943]
[1750720507101,0.14,2421.9,2421.7,2.0548]
[1750720507919,1.6507,2421.9,2421.3,8.8938]
[1750720508481,1.6507,2421.9,2421.3,7.389]
[1750720508682,1.6507,2421.9,2421.0,1.5969]
[1750720509004,1.6507,2421.9,2421.3,7.388]
[1750720509695,1.6507,2421.9,2421.0,1.5969]
[1750720509892,1.6507,2421.9,2421.1,7.387]
[1750720510111,1.6507,2421.9,2421.2,0.89839]
[1750720510701,1.6507,2421.9,2421.1,7.386]
[1750720511990,1.6507,2421.9,2421.2,0.55]
[1750720515190,0.14,2421.9,2421.3,1.5519]
[1750720516131,0.14,2421.9,2421.4,0.55]
[1750720517443,0.14,2421.9,2421.3,1.5519]
[1750720517663,0.14,2421.9,2421.3,2.50069]
[1750720517945,0.14,2421.9,2421.1,0.55]
[1750720518148,1.5797,2421.8,2420.9,7.378]
[1750720518360,1.5797,2421.8,2420.9,8.9671]
[1750720518511,30.0,2421.7,2420.9,8.9671]
[1750720518707,2.0817683,2421.8,2420.9,9.86281]
[1750720518909,1.5797,2421.5,2420.9,0.89671]
[1750720519110,1.5797,2421.5,2420.8,7.377]
[1750720519548,1.5797,2421.5,2420.6,1.5891]
[1750720519549,11.5797,2421.5,2420.7,0.55]
[1750720519751,1.5797,2421.5,2420.8,7.377]
[1750720519931,1.5797,2421.5,2420.7,0.55]
[1750720520135,1.5797,2421.5,2420.8,0.21391]
[1750720520609,1.5797,2421.5,2420.8,7.58991]
[1750720520809,11.5797,2421.5,2420.9,7.376]
[1750720521012,1.5797,2421.5,2420.9,7.376]
[1750720521249,2.1012683,2421.7,2421.0,0.55]
[1750720521546,0.14,2421.9,2421.2,0.55]
[1750720522509,0.14,2421.9,2421.4,0.55]
[1750720522833,10.0,2421.5,2420.8,1.78331]
[1750720523051,10.0,2421.2,2420.5,1.5694]
[1750720523252,10.0,2421.2,2420.5,8.9424]
[1750720523455,1.5514,2421.4,2420.5,8.9424]
[1750720523957,1.5514,2421.4,2420.5,1.5694]
[1750720524163,1.5514,2421.4,2420.7,0.55]
[1750720524325,1.5514,2421.4,2420.5,1.5694]
[1750720524661,10.0,2421.2,2419.9,1.575]
[1750720524837,30.0,2421.3,2419.8,7.0372788]
[1750720524838,12.125,2421.3,2420.4,1.575]
[1750720525035,30.0,2421.2,2420.4,1.575]
[1750720525235,1.5922,2421.1,2420.2,8.9303]
[1750720525563,0.5020683,2421.4,2420.5,0.55]
[1750720525952,1.5922,2421.5,2420.5,0.55]
[1750720526268,10.0,2421.4,2420.5,0.55]
[1750720526430,1.5922,2421.5,2420.5,0.55]
[1750720526866,10.0,2421.4,2420.4,1.5593]
[1750720527071,10.0,2421.2,2420.5,7.37]
[1750720527372,2.0942683,2421.5,2420.6,0.55]
[1750720527958,1.5922,2421.5,2420.6,0.55]
[1750720528273,11.5061,2421.7,2420.8,0.55]
[1750720528459,11.5061,2421.7,2420.4,4.37677823]
[1750720528460,1.5061,2421.7,2421.0,0.55]
[1750720528764,2.6270683,2422.1,2421.1,1.5114]
[1750720528765,0.14,2421.9,2421.1,1.5114]
[1750720528980,0.14,2421.9,2421.2,1.49294]
[1750720530995,10.14,2421.9,2421.2,1.49294]
[1750720531206,0.14,2421.9,2421.2,1.49294]
[1750720531708,0.14,2421.9,2421.4,0.55]
[1750720531885,0.14,2421.9,2421.6,0.55]
[1750720532073,0.14,2421.9,2421.7,0.20998]
[1750720532663,0.14,2421.9,2421.8,2.0846]
[1750720534999,0.14,2421.9,2421.8,1.5346]
[1750720535980,0.14,2421.9,2421.6,2.0956]
[1750720536368,0.14,2421.9,2420.8,9.927]
[1750720536606,11.5781,2421.7,2421.2,7.36]
[1750720536790,1.5781,2421.7,2421.1,1.5265]
[1750720536995,1.5781,2421.7,2421.1,7.359]
[1750720537197,1.5781,2421.7,2420.9,1.597]
[1750720537396,10.0,2421.5,2420.9,1.597]
[1750720537597,0.6420683,2421.9,2421.0,8.5104]
[1750720537598,10.6420683,2421.9,2421.0,8.5104]
[1750720537802,10.6420683,2421.9,2421.1,1.5361]
[1750720538100,10.6420683,2421.9,2421.2,0.55]
[1750720538101,10.14,2421.9,2421.2,0.55]
[1750720539701,10.14,2421.9,2421.4,0.55]
[1750720540098,10.14,2421.9,2421.3,7.356]
[1750720540300,10.14,2421.9,2421.2,0.55]
[1750720540831,10.14,2421.9,2421.1,1.5361]
[1750720540995,10.0,2421.7,2421.2,7.355]
[1750720541607,30.0,2421.8,2421.1,1.5361]
[1750720541608,10.6420683,2421.9,2421.1,1.5361]
[1750720541831,10.0,2421.5,2421.2,7.354]
[1750720542022,1.5098,2421.6,2421.2,7.354]
[1750720542335,0.14,2421.9,2421.3,1.5073]
[1750720542483,0.14,2421.9,2421.7,0.55]
[1750720542682,0.14,2421.9,2421.8,9.4103]
[1750720544509,0.14,2421.9,2421.8,13.53946012]
[1750720545303,0.14,2422.9,2422.1,4.1285881]
[1750720545529,0.14,2422.9,2422.6,1.6435]
[1750720545748,0.14,2422.9,2422.7,7.899]
[1750720546610,0.14,2422.9,2422.7,7.349]
[1750720547143,40.0,2422.8,2422.3,1.6501]
[1750720547465,0.14,2422.9,2422.3,8.9971]
[1750720547753,0.14,2422.9,2422.4,0.55]
[1750720547950,0.14,2422.9,2422.3,1.6501]
[1750720548168,0.14,2422.9,2422.4,7.347]
[1750720548463,30.0,2422.8,2422.4,7.347]
[1750720548651,0.14,2422.9,2422.4,7.347]
[1750720548849,0.14,2422.9,2422.4,8.0817]
[1750720549172,0.14,2422.9,2422.5,2.1469]
[1750720552827,1.6961,2422.9,2422.2,1.6063]
[1750720553069,10.0,2422.7,2422.4,7.342]
[1750720553367,1.6961,2422.9,2422.4,7.342]
[1750720553566,10.0,2422.7,2422.4,7.342]
[1750720553862,1.6961,2422.9,2422.4,7.342]
[1750720554192,1.6961,2422.9,2421.4,4.1298244]
[1750720554193,1.5462,2422.1,2421.0,7.338]
[1750720554475,10.0,2421.7,2421.0,7.338]
[1750720554678,0.90072479,2421.7,2421.0,7.338]
[1750720554992,1.5834,2421.6,2421.0,7.337]
[1750720555272,2.48412479,2421.6,2421.0,7.337]
[1750720555871,0.90072479,2421.6,2421.0,7.337]
[1750720556074,0.90072479,2421.6,2420.7,1.5151]
[1750720556276,0.90072479,2421.6,2421.1,7.338]
[1750720557031,0.90072479,2421.6,2421.2,2.2077]
[1750720557232,4.127686,2422.7,2421.3,5.78767692]
[1750720557233,30.0,2422.7,2421.3,5.78767692]
[1750720557550,2.814967,2422.8,2421.8,0.55]
[1750720557751,1.242167,2422.8,2422.0,0.55]
[1750720557943,1.242167,2422.8,2422.2,0.55]
[1750720558131,0.14,2422.9,2422.2,0.55]
[1750720558333,0.14,2422.9,2422.4,0.55]
[1750720559868,0.14,2422.9,2422.3,1.6577]
[1750720560555,30.0,2422.8,2422.3,1.6577]
[1750720560757,0.14,2422.9,2422.3,2.578947]
[1750720561336,0.14,2422.9,2422.4,0.55]
[1750720562134,30.0,2422.8,2422.3,1.6577]
[1750720562470,1.6641,2422.9,2421.9,1.5777]
[1750720562670,1.6641,2422.9,2422.0,7.331]
[1750720562872,30.0,2422.8,2422.1,0.89087]
[1750720563058,1.6641,2422.9,2422.1,0.89087]
[1750720563259,11.6641,2422.9,2422.1,0.89087]
[1750720563575,1.6641,2422.9,2422.1,0.89087]
[1750720563740,0.14,2422.9,2422.1,0.89087]
[1750720563939,10.0,2422.7,2422.2,0.822187]
[1750720564177,10.0,2422.7,2422.1,7.33]
[1750720564359,0.14,2422.9,2422.1,7.33]
[1750720564565,10.14,2422.9,2422.1,7.33]
[1750720564876,10.14,2422.9,2422.2,0.55]